bitfinex/quotes_ETHUSD_20241024
["timestamp","ask_amount","ask_price","bid_price","bid_amount"]
[1729811881255,0.7997,2533.1,2532.8,1.61577113]
[1729811881437,3.94767,2533.2,2532.8,5.56395113]
[1729811881636,0.7997,2533.3,2532.8,5.56388113]
[1729811881846,0.7997,2533.3,2532.8,3.94811]
[1729811882225,0.7997,2533.3,2532.8,5.13647902]
[1729811882425,3.94758,2533.2,2532.8,5.13647902]
[1729811882652,3.94758,2533.2,2532.8,6.75225015]
[1729811883651,3.94737,2533.4,2533.0,3.94788]
[1729811883966,3.94744,2533.3,2532.9,6.38900113]
[1729811884139,3.94744,2533.3,2532.9,7.21063376]
[1729811885467,3.94742,2533.3,2532.9,7.21063376]
[1729811886031,3.94737,2533.4,2533.1,1.61577113]
[1729811886282,3.94737,2533.4,2533.0,5.64257101]
[1729811886575,3.94737,2533.4,2533.0,5.56362113]
[1729811886761,3.94737,2533.4,2533.1,0.72104538]
[1729811889477,5.56282113,2533.6,2533.1,0.72104538]
[1729811889781,3.94721,2533.5,2533.1,0.72104538]
[1729811890146,5.56298113,2533.5,2533.1,0.72104538]
[1729811890378,3.94726,2533.4,2532.9,6.38886113]
[1729811891261,0.7997,2533.7,2533.1,1.61577113]
[1729811891462,3.94697,2533.6,2533.2,2.44097113]
[1729811892280,0.7997,2533.7,2533.3,1.61577113]
[1729811892481,0.7997,2533.7,2533.3,0.6467547]
[1729811893086,1.61577113,2533.5,2533.3,0.6467547]
[1729811893677,1.61577113,2533.4,2533.3,0.6467547]
[1729811893887,1.61577113,2533.5,2533.3,0.6467547]
[1729811894071,1.61577113,2533.4,2533.3,0.6467547]
[1729811894779,1.61577113,2533.5,2533.3,0.6467547]
[1729811894978,1.61577113,2533.4,2533.3,0.6467547]
[1729811895494,1.61577113,2533.5,2533.3,0.6467547]
[1729811895978,1.61577113,2533.5,2533.2,0.8252]
[1729811896360,1.61577113,2533.4,2533.2,0.8252]
[1729811896878,1.61577113,2533.3,2533.2,0.8252]
[1729811898084,1.61577113,2533.4,2533.2,0.8252]
[1729811900523,1.61577113,2533.3,2533.2,0.8252]
[1729811903698,1.61577113,2533.3,2533.0,0.8095]
[1729811904025,1.61577113,2533.1,2533.0,1.285252]
[1729811907744,3.23154226,2533.1,2532.7,0.8095]
[1729811907926,1.61577113,2532.8,2532.7,0.8095]
[1729811915124,1.61577113,2532.8,2532.7,4.75785]
[1729811915324,1.61577113,2532.8,2532.7,5.71920046]
[1729811917149,1.61577113,2532.8,2532.7,5.79816042]
[1729811917344,1.61577113,2532.8,2532.7,5.71920046]
[1729811920552,0.7656,2533.2,2532.7,5.79816042]
[1729811920756,3.94705,2533.6,2532.9,3.94799]
[1729811920757,0.7593,2533.5,2532.9,3.94799]
[1729811921047,0.7593,2533.5,2532.9,4.68954857]
[1729811921048,4.70642,2533.5,2532.9,4.68954857]
[1729811921756,1.61577113,2533.0,2532.9,5.51504857]
[1729811921924,1.61577113,2533.0,2532.9,5.43609849]
[1729811922259,4.70642,2533.5,2532.9,5.43609849]
[1729811922558,4.70642,2533.5,2533.0,1.0212443]
[1729811923117,1.61577113,2533.1,2533.0,1.0212443]
[1729811923519,1.61577113,2533.1,2533.0,4.9691243]
[1729811924315,1.61577113,2533.1,2533.0,1.0212443]
[1729811924558,1.61577113,2533.1,2533.0,4.77616452]
[1729811927021,1.61577113,2533.1,2533.0,5.60166452]
[1729811927221,1.61577113,2533.1,2533.0,4.77338]
[1729811928860,4.70617,2533.7,2533.0,4.77338]
[1729811929046,1.61577113,2533.6,2533.1,0.90704842]
[1729811929360,1.61577113,2533.2,2533.1,1.59933394]
[1729811929559,1.61577113,2533.2,2533.1,1.52039121]
[1729811930960,1.61577113,2533.2,2533.1,0.69228552]
[1729811931260,1.61577113,2533.2,2533.0,1.65360569]
[1729811931553,1.61577113,2533.1,2533.0,1.65360569]
[1729811931766,1.61577113,2533.1,2533.0,0.82810569]
[1729811938849,2.43617113,2533.1,2532.9,0.82810569]
[1729811939186,1.61577113,2533.0,2532.9,0.82810569]
[1729811940049,1.61577113,2533.0,2532.8,0.82810569]
[1729811940249,1.61577113,2532.9,2532.8,2.07459489]
[1729811940750,0.8204,2533.4,2532.8,2.98155037]
[1729811940949,1.61577113,2533.0,2532.9,2.14937258]
[1729811941157,2.43617113,2533.6,2533.0,3.94785]
[1729811941466,2.43617113,2533.6,2533.1,0.90712767]
[1729811941862,1.61577113,2533.2,2533.1,1.91553001]
[1729811942491,1.61577113,2533.2,2533.1,2.74353001]
[1729811944076,1.61577113,2533.2,2533.1,1.91553001]
[1729811944304,1.61577113,2533.2,2533.1,0.82818556]
[1729811944454,1.61577113,2533.2,2533.0,0.82818556]
[1729811944658,1.61577113,2533.1,2533.0,0.82818556]
[1729811947891,1.61577113,2533.1,2532.8,0.82818556]
[1729811947892,0.8273,2533.0,2532.8,0.82818556]
[1729811948100,1.61577113,2532.9,2532.8,0.82818556]
[1729811950180,1.61577113,2532.9,2532.8,1.34314279]
[1729811950372,1.61577113,2532.9,2532.8,0.51495723]
[1729811950573,1.61577113,2532.9,2532.8,1.75738402]
[1729811951087,1.61577113,2532.9,2532.8,0.51495723]
[1729811951924,1.61577113,2532.9,2532.8,1.75738402]
[1729811952609,1.61577113,2532.9,2532.8,2.53638402]
[1729811953199,1.61577113,2532.9,2532.8,1.29395723]
[1729811953690,1.61577113,2532.9,2532.8,2.53638402]
[1729811955087,1.61577113,2532.9,2532.8,1.29395723]
[1729811955590,1.61577113,2532.9,2532.8,2.53638402]
[1729811956908,1.61577113,2532.9,2532.8,1.29395723]
[1729811957331,1.61577113,2532.9,2532.8,2.53638402]
[1729811957527,0.8273,2533.3,2532.8,2.53638402]
[1729811957688,1.61577113,2532.9,2532.8,2.53638402]
[1729811960636,1.61577113,2532.9,2532.8,6.56352792]
[1729811960991,1.61577113,2533.0,2532.8,6.56352792]
[1729811961303,1.61577113,2533.0,2532.9,1.24242679]
[1729811961504,4.77442,2533.5,2533.0,0.7891]
[1729811961716,1.61577113,2533.1,2533.0,2.03166785]
[1729811962015,1.61577113,2533.1,2533.0,5.97954785]
[1729811962409,1.61577113,2533.1,2533.0,2.03166785]
[1729811962797,1.61577113,2533.1,2533.0,0.7891]
[1729811962992,1.61577113,2533.1,2533.0,1.60423841]
[1729811963206,1.61577113,2533.1,2533.0,2.84680626]
[1729811964528,1.61577113,2533.1,2533.0,1.60423841]
[1729811964731,1.61577113,2533.1,2533.0,2.84680626]
[1729811964933,1.61577113,2533.1,2533.0,1.60423841]
[1729811965125,1.61577113,2533.1,2533.0,2.84680626]
[1729811965334,1.61577113,2533.1,2533.0,1.24256785]
[1729811965502,2.39327113,2533.1,2533.0,0.82848264]
[1729811965933,2.39327113,2533.1,2532.9,0.82848264]
[1729811966139,1.61577113,2533.0,2532.9,0.82848264]
[1729811967038,1.61577113,2533.0,2532.9,0.82855506]
[1729811967221,1.61577113,2533.0,2532.9,1.20921972]
[1729811967431,1.61577113,2533.0,2532.9,1.20920509]
[1729811967629,1.61577113,2533.0,2532.9,2.41233251]
[1729811968103,1.61577113,2533.0,2532.9,1.62323251]
[1729811968321,1.61577113,2533.0,2532.9,0.82854153]
[1729811968835,1.61577113,2533.0,2532.9,1.24256785]
[1729811969130,1.61577113,2533.0,2532.8,1.32152279]
[1729811969342,1.61577113,2532.9,2532.8,1.32152279]
[1729811969534,1.61577113,2532.9,2532.8,1.67450508]
[1729811969732,1.61577113,2532.9,2532.8,2.91728338]
[1729811970325,1.61577113,2532.9,2532.8,0.82854043]
[1729811970524,1.61577113,2532.9,2532.8,1.2427783]
[1729811970724,1.61577113,2532.9,2532.7,1.2427783]
[1729811970927,1.61577113,2532.8,2532.7,1.2427783]
[1729811971648,1.61577113,2532.8,2532.6,8.60506905]
[1729811971826,1.61577113,2532.8,2532.7,2.80311765]
[1729811972641,1.61577113,2532.8,2532.7,1.1465486]
[1729811972855,1.61577113,2532.8,2532.7,2.38929869]
[1729811973058,1.61577113,2532.8,2532.7,2.80311765]
[1729811976065,1.61577113,2532.8,2532.7,1.1465486]
[1729811976357,1.61577113,2532.8,2532.7,2.38937057]
[1729811976722,1.61577113,2532.8,2532.7,2.80311765]
[1729811976920,1.61577113,2532.8,2532.7,2.38938225]
[1729811977255,1.61577113,2532.8,2532.7,1.1465486]
[1729811978034,1.61577113,2532.8,2532.7,2.80311765]
[1729811979037,1.61577113,2532.8,2532.7,1.1465486]
[1729811979561,1.61577113,2532.8,2532.7,2.38939381]
[1729811980038,1.61577113,2532.8,2532.7,1.1465486]
[1729811980240,1.61577113,2532.8,2532.7,2.80311765]
[1729811980579,1.61577113,2532.8,2532.7,2.38941085]
[1729811980759,1.61577113,2532.8,2532.7,2.80311765]
[1729811982843,1.61577113,2532.8,2532.7,1.1465486]
[1729811983296,1.61577113,2532.8,2532.7,2.80311765]
[1729811985049,1.61577113,2532.8,2532.7,1.1465486]
[1729811986053,1.61577113,2532.8,2532.7,2.80311765]
[1729811986249,1.61577113,2532.8,2532.7,2.38946226]
[1729811986758,1.61577113,2532.8,2532.7,1.24291366]
[1729811992282,1.61577113,2532.8,2532.7,1.32187268]
[1729811992657,1.61577113,2532.8,2532.7,1.24291366]
[1729812001485,0.7678,2532.8,2532.7,0.82869926]
[1729812001685,2.38357113,2532.8,2532.7,0.82869926]
[1729812006389,2.38357113,2532.8,2532.6,0.82869926]
[1729812006624,1.61577113,2532.7,2532.6,0.82869926]
[1729812008108,1.61577113,2532.7,2532.5,1.24291366]
[1729812008295,0.8228,2533.0,2532.5,3.28127129]
[1729812008497,4.77076,2533.0,2532.7,0.82843139]
[1729812008724,0.8228,2533.0,2532.7,0.90738849]
[1729812008929,1.61577113,2532.8,2532.7,0.90738849]
[1729812009096,1.61577113,2532.8,2532.7,1.80781727]
[1729812009946,1.61577113,2533.1,2532.8,4.70359]
[1729812010099,1.61577113,2533.0,2532.9,0.90745002]
[1729812010431,1.61577113,2533.1,2532.9,6.13993452]
[1729812010607,1.61577113,2533.1,2533.0,1.24273174]
[1729812011537,1.61577113,2533.1,2532.9,6.1397526]
[1729812011737,1.61577113,2533.0,2532.9,6.1397526]
[1729812011908,1.61577113,2533.0,2532.9,6.63253968]
[1729812012692,1.61577113,2533.0,2532.9,6.13961342]
[1729812012999,1.61577113,2533.0,2532.9,6.55359991]
[1729812013198,1.61577113,2533.0,2532.9,2.19153784]
[1729812013633,1.61577113,2533.0,2532.9,0.94899086]
[1729812013930,1.61577113,2533.0,2532.9,2.19148391]
[1729812014133,1.61577113,2533.0,2532.9,2.60555991]
[1729812015006,1.61577113,2533.0,2532.9,0.94899086]
[1729812015209,1.61577113,2533.0,2532.9,2.19139506]
[1729812016334,1.61577113,2533.0,2532.9,0.94899086]
[1729812016634,1.61577113,2533.0,2532.9,2.19125484]
[1729812018941,11.35586,2534.3,2532.9,2.19125484]
[1729812018942,4.76978,2533.6,2533.1,0.7554]
[1729812019241,1.61577113,2533.3,2533.2,0.470321]
[1729812019745,1.61577113,2533.3,2533.2,1.71233069]
[1729812020742,1.61577113,2533.3,2533.2,0.470321]
[1729812020942,1.61577113,2533.3,2533.2,1.71233069]
[1729812022148,1.61577113,2533.3,2533.2,0.470321]
[1729812022442,1.61577113,2533.5,2533.2,4.417881]
[1729812022748,1.61577113,2533.4,2533.3,1.46887616]
[1729812023109,1.61577113,2533.4,2533.3,1.88355576]
[1729812023511,1.61577113,2533.4,2533.3,0.64154607]
[1729812023743,4.73593,2534.0,2533.4,4.78002]
[1729812023942,1.61577113,2533.7,2533.5,1.49341175]
[1729812024146,1.61577113,2533.6,2533.5,1.49341175]
[1729812024438,1.61577113,2533.6,2533.5,0.66635758]
[1729812024851,3.9466,2533.9,2533.5,0.66635758]
[1729812025137,3.9466,2533.9,2533.5,1.49341175]
[1729812025138,1.61577113,2533.6,2533.5,1.49341175]
[1729812025343,1.61577113,2533.6,2533.5,0.66635758]
[1729812026512,1.61577113,2533.6,2533.4,1.65985417]
[1729812026713,1.61577113,2533.5,2533.4,1.65985417]
[1729812027857,1.61577113,2533.5,2533.4,0.8328]
[1729812032446,3.9465,2533.9,2533.4,0.8328]
[1729812032658,1.61577113,2533.6,2533.4,0.8328]
[1729812032835,1.61577113,2533.7,2533.5,0.70381151]
[1729812033040,4.73593,2534.0,2533.5,0.70381151]
[1729812033234,1.61577113,2533.7,2533.5,0.70381151]
[1729812033863,0.08347932,2533.6,2533.5,0.70381151]
[1729812034881,1.61577113,2533.7,2533.5,0.70381151]
[1729812035163,0.08349322,2533.6,2533.5,0.70381151]
[1729812035573,1.61577113,2533.7,2533.5,0.70381151]
[1729812035775,0.08349322,2533.6,2533.5,0.70381151]
[1729812038871,0.08349322,2533.6,2533.5,0.62488002]
[1729812039067,0.08349322,2533.6,2533.5,0.70380808]
[1729812039274,1.61577113,2533.7,2533.5,0.70380808]
[1729812039481,0.08349322,2533.6,2533.5,0.70380808]
[1729812039653,0.08349322,2533.6,2533.5,0.62488002]
[1729812039855,0.08349322,2533.6,2533.5,0.70380824]
[1729812040051,1.61577113,2533.8,2533.5,0.70380824]
[1729812040268,1.69929236,2533.7,2533.6,0.54838282]
[1729812040468,1.69929236,2533.7,2533.5,0.70380824]
[1729812040685,1.69929236,2533.7,2533.5,0.62488002]
[1729812043484,1.61577113,2533.7,2533.5,0.62488002]
[1729812043667,0.08419715,2533.6,2533.5,0.62488002]
[1729812046684,0.08421104,2533.6,2533.5,0.62488002]
[1729812047088,1.61577113,2533.8,2533.5,0.62488002]
[1729812047385,1.70001017,2533.7,2533.6,0.541486]
[1729812056385,1.70001017,2533.7,2533.5,0.82705417]
[1729812056560,1.61577113,2533.6,2533.5,0.82705417]
[1729812057080,0.08144506,2533.6,2533.5,0.82705417]
[1729812058273,1.69721619,2533.6,2533.5,0.82705417]
[1729812058477,0.08144506,2533.6,2533.5,0.82705417]
[1729812058777,0.08144506,2533.6,2533.5,1.26377207]
[1729812059682,0.08144506,2533.6,2533.5,0.4367179]
[1729812060374,0.08144506,2533.6,2533.5,1.67872759]
[1729812060983,1.61577113,2533.7,2533.5,1.67872759]
[1729812061302,1.61577113,2533.7,2533.6,0.82711097]
[1729812061675,1.69746706,2533.7,2533.6,0.82711097]
[1729812061877,5.64425706,2533.7,2533.6,0.82711097]
[1729812064303,6.41305706,2533.7,2533.6,1.24200969]
[1729812064998,6.41305706,2533.7,2533.6,0.8279942]
[1729812066204,3.94695,2533.6,2533.4,1.3209456]
[1729812066407,5.56287113,2533.5,2533.4,1.24200969]
[1729812066570,5.64453421,2533.5,2533.4,1.24200969]
[1729812067087,5.64453421,2533.5,2533.3,4.65656905]
[1729812067386,0.08166308,2533.5,2533.4,6.50986809]
[1729812067591,0.08166308,2533.5,2533.4,2.48366905]
[1729812067799,1.69743421,2533.5,2533.4,0.8271]
[1729812068005,1.61577113,2533.5,2533.4,1.91937589]
[1729812068218,0.08157513,2533.5,2533.4,3.99038669]
[1729812068408,1.61577113,2533.6,2533.4,3.99038669]
[1729812068595,1.61577113,2533.6,2533.5,3.25232527]
[1729812073272,1.69737426,2533.6,2533.5,3.25232527]
[1729812075097,1.69737426,2533.6,2533.5,1.65709079]
[1729812084845,1.69737426,2533.6,2533.5,2.43259643]
[1729812085211,0.08160313,2533.6,2533.5,2.43259643]
[1729812085402,1.69737426,2533.6,2533.5,2.01853688]
[1729812085603,1.61577113,2533.6,2533.5,2.01853688]
[1729812085931,1.69734311,2533.6,2533.5,1.24303124]
[1729812086241,1.69734311,2533.6,2533.5,1.65709079]
[1729812087324,1.69734311,2533.6,2533.5,1.24301599]
[1729812087528,5.64429311,2533.6,2533.5,1.24301599]
[1729812087834,8.03316424,2533.6,2533.5,0.82869869]
[1729812088002,8.03316424,2533.6,2533.4,0.82869869]
[1729812088203,5.56287113,2533.5,2533.4,0.82869869]
[1729812088740,5.641543,2533.5,2533.4,0.82869869]
[1729812089320,5.641543,2533.5,2533.3,0.82869869]
[1729812089526,4.02577187,2533.5,2533.4,0.82869869]
[1729812090144,4.79887187,2533.5,2533.4,0.82869869]
[1729812090349,3.94726,2533.4,2533.3,0.82869869]
[1729812090502,4.72052,2533.3,2533.1,2.07171468]
[1729812090703,5.56334113,2533.2,2533.1,0.82869869]
[1729812091305,5.56334113,2533.2,2533.0,0.82869869]
[1729812091306,5.64186794,2533.2,2533.0,0.82869869]
[1729812091536,5.56360113,2533.1,2532.9,0.82869869]
[1729812091739,1.61577113,2533.0,2532.9,0.82869869]
[1729812092046,1.69424193,2533.0,2532.9,1.24301599]
[1729812092247,1.69424193,2533.0,2532.9,0.82796713]
[1729812092413,1.69424193,2533.0,2532.8,0.82796713]
[1729812092414,5.64212193,2533.0,2532.8,0.82796713]
[1729812092612,1.61577113,2532.9,2532.8,1.80610633]
[1729812093142,1.69420044,2532.9,2532.8,1.80610633]
[1729812093351,1.69420044,2532.9,2532.7,0.82796713]
[1729812093647,1.61577113,2532.8,2532.7,0.82796713]
[1729812093822,7.17973226,2532.8,2532.7,0.82796713]
[1729812094011,5.64202492,2532.8,2532.6,2.15808523]
[1729812094212,1.61577113,2532.7,2532.6,1.40908021]
[1729812094433,1.61577113,2532.7,2532.6,3.8591289]
[1729812094633,1.6938069,2532.7,2532.6,2.5290108]
[1729812096449,1.6938069,2532.7,2532.6,1.70158688]
[1729812097424,0.07803577,2532.7,2532.6,1.70158688]
[1729812097850,1.61577113,2532.8,2532.6,1.70158688]
[1729812098005,1.69115144,2532.7,2532.6,1.70158688]
[1729812098206,1.69115144,2532.7,2532.5,0.82742392]
[1729812098406,0.07538031,2532.7,2532.5,0.90638768]
[1729812098636,1.61577113,2532.8,2532.5,0.90638768]
[1729812099136,0.0725562,2532.7,2532.5,0.90638768]
[1729812099450,1.61577113,2532.8,2532.5,0.90638768]
[1729812099660,0.07252818,2532.6,2532.5,2.0588903]
[1729812100177,1.61577113,2532.8,2532.5,2.0588903]
[1729812100457,0.07252818,2532.6,2532.5,2.0588903]
[1729812100659,1.61577113,2532.8,2532.5,2.0588903]
[1729812100821,0.07252818,2532.6,2532.5,2.0588903]
[1729812101145,1.61577113,2532.6,2532.5,1.15250262]
[1729812101345,1.68829931,2532.6,2532.5,1.15250262]
[1729812101657,1.68829931,2532.6,2532.4,4.86180572]
[1729812102765,1.68829931,2532.6,2532.4,4.0343818]
[1729812103287,1.61577113,2532.5,2532.4,4.0343818]
[1729812103563,1.6882578,2532.5,2532.4,4.0343818]
[1729812103855,1.6882578,2532.5,2532.3,3.0]
[1729812105457,1.6882578,2532.5,2532.3,3.97825599]
[1729812108202,1.61577113,2532.4,2532.2,0.82742392]
[1729812108372,1.68811821,2532.3,2532.1,3.82742392]
[1729812108566,0.07234708,2532.3,2532.1,6.94919]
[1729812108893,0.07234708,2532.3,2532.2,0.07897304]
[1729812109317,0.07234708,2532.3,2532.2,4.02810304]
[1729812109598,1.61577113,2532.5,2532.2,5.34570142]
[1729812109771,0.0722431,2532.4,2532.2,5.34570142]
[1729812111396,1.68801423,2532.4,2532.2,5.34570142]
[1729812117911,0.0722431,2532.4,2532.2,5.34570142]
[1729812121788,0.0722431,2532.4,2532.2,5.34560142]
[1729812121990,0.7878,2532.9,2532.5,3.94864]
[1729812122310,1.68793511,2532.8,2532.5,3.94864]
[1729812123109,1.61577113,2532.7,2532.4,0.07896346]
[1729812123292,1.61577113,2532.7,2532.3,2.47408406]
[1729812123293,1.61577113,2532.6,2532.3,1.64666014]
[1729812123624,1.61577113,2532.4,2532.1,3.82742392]
[1729812123783,0.07216756,2532.3,2532.2,0.0789733]
[1729812124111,0.07216756,2532.3,2532.1,3.0]
[1729812125014,1.68793869,2532.3,2532.0,6.20689071]
[1729812125198,1.61577113,2532.3,2532.0,6.51945346]
[1729812125381,0.07208556,2532.2,2532.1,4.02823654]
[1729812125577,5.56407113,2532.8,2532.1,4.02823654]
[1729812125578,3.94798,2533.0,2532.3,3.94886]
[1729812125784,3.94798,2533.0,2532.5,3.94859]
[1729812125785,1.61577113,2532.8,2532.5,3.94859]
[1729812125990,1.61577113,2532.8,2532.5,4.02755258]
[1729812127117,1.61577113,2532.7,2532.5,3.94859]
[1729812127617,0.0720584,2532.6,2532.5,3.94859]
[1729812127991,0.0720584,2532.6,2532.5,4.02755417]
[1729812128407,1.61577113,2532.7,2532.5,4.02755417]
[1729812129113,1.61577113,2532.7,2532.5,0.07896417]
[1729812130524,1.61577113,2532.7,2532.4,12.67383392]
[1729812130828,1.61577113,2532.7,2532.4,14.8500983]
[1729812130983,0.07209045,2532.6,2532.5,0.0789645]
[1729812131184,1.61577113,2532.7,2532.5,0.90638842]
[1729812131520,0.07209045,2532.6,2532.5,0.90638842]
[1729812131694,1.68786158,2532.6,2532.5,0.82742392]
[1729812131883,1.61577113,2532.7,2532.5,0.82742392]
[1729812132227,0.07209045,2532.6,2532.5,0.9063886]
[1729812132522,1.61577113,2532.8,2532.5,3.87203988]
[1729812132698,1.61577113,2532.8,2532.6,0.82702349]
[1729812132896,0.07211848,2532.7,2532.6,0.82702349]
[1729812133104,1.68788961,2532.7,2532.6,0.82702349]
[1729812133283,1.61577113,2532.7,2532.5,3.87203988]
[1729812133488,1.68788961,2532.7,2532.6,1.9551715]
[1729812133727,1.68788961,2532.7,2532.5,0.7901]
[1729812134043,1.61577113,2532.6,2532.4,7.8976]
[1729812134392,0.07214265,2532.5,2532.4,7.8976]
[1729812135022,1.68791378,2532.5,2532.4,7.8976]
[1729812135209,1.68791378,2532.5,2532.4,8.76637]
[1729812135414,1.68791378,2532.5,2532.4,7.8976]
[1729812136638,2.47871378,2532.5,2532.4,7.8976]
[1729812137330,2.47871378,2532.5,2532.4,9.13988313]
[1729812137530,6.42737378,2532.5,2532.4,7.8976]
[1729812138032,2.47871378,2532.5,2532.4,7.8976]
[1729812138401,6.35523113,2532.5,2532.4,9.13988313]
[1729812138603,6.42735746,2532.5,2532.4,7.8976]
[1729812139935,6.42735746,2532.5,2532.4,8.72597757]
[1729812140705,2.47869746,2532.5,2532.4,8.72597757]
[1729812141005,6.42735746,2532.5,2532.4,8.72597757]
[1729812142443,6.42735746,2532.5,2532.4,7.8976]
[1729812142642,6.42735746,2532.5,2532.4,8.72597757]
[1729812143547,6.42735746,2532.5,2532.4,7.8976]
[1729812145765,7.46494421,2532.5,2532.4,7.8976]
[1729812150353,9.08071534,2532.5,2532.4,7.8976]
[1729812150555,10.46494421,2532.5,2532.4,7.8976]
[1729812155471,12.08071534,2532.5,2532.4,7.8976]
[1729812155786,10.46494421,2532.5,2532.4,7.8976]
[1729812156565,12.08071534,2532.5,2532.4,7.8976]
[1729812156779,10.46494421,2532.5,2532.4,7.8976]
[1729812169871,12.64071534,2532.5,2532.4,7.8976]
[1729812170357,11.02494421,2532.5,2532.4,7.8976]
[1729812171570,12.64071534,2532.5,2532.4,7.8976]
[1729812171766,11.02494421,2532.5,2532.4,7.8976]
[1729812178899,9.40917308,2532.5,2532.4,7.8976]
[1729812179182,7.02078633,2532.5,2532.4,7.8976]
[1729812179491,8.63655746,2532.5,2532.4,7.8976]
[1729812180853,4.02078633,2532.5,2532.4,7.8976]
[1729812181053,5.63655746,2532.5,2532.4,7.8976]
[1729812210013,6.39365746,2532.5,2532.4,7.8976]
[1729812210219,9.04364534,2532.5,2532.4,7.8976]
[1729812210382,12.60364534,2532.5,2532.4,7.8976]
[1729812212292,10.98787421,2532.5,2532.4,7.8976]
[1729812213199,12.60364534,2532.5,2532.4,7.8976]
[1729812220327,7.02078633,2532.5,2532.4,7.8976]
[1729812220515,5.63655746,2532.5,2532.4,8.7062]
[1729812229140,5.63655746,2532.5,2532.4,8.5902]
[1729812237061,5.63655746,2532.5,2532.4,7.7816]
[1729812251761,7.35226421,2532.5,2532.4,7.7816]
[1729812257871,6.59506421,2532.5,2532.4,7.7816]
[1729812268072,4.02078633,2532.5,2532.4,7.7816]
[1729812268276,4.02078633,2532.5,2532.4,8.5995]
[1729812271411,5.63655746,2532.5,2532.4,8.5995]
[1729812273014,5.63655746,2532.5,2532.4,7.7816]
[1729812315528,0.07212633,2532.5,2532.4,7.7816]
[1729812315737,3.94767,2533.2,2532.4,14.7880292]
[1729812315738,3.94802,2533.0,2532.4,14.7880292]
[1729812315935,0.7651,2533.2,2532.6,0.82926417]
[1729812315936,1.61577113,2532.7,2532.6,0.82926417]
[1729812316226,0.05229586,2532.7,2532.6,0.82926417]
[1729812316535,1.66806699,2532.7,2532.6,1.99611151]
[1729812317373,1.66806699,2532.7,2532.6,1.16684734]
[1729812320252,1.61577113,2532.7,2532.6,1.16684734]
[1729812320452,1.66806699,2532.7,2532.6,1.16684734]
[1729812321266,5.61641699,2532.7,2532.6,1.16684734]
[1729812321671,1.66806699,2532.7,2532.6,1.16684734]
[1729812321872,1.66806699,2532.7,2532.6,1.99611151]
[1729812322074,1.61577113,2532.7,2532.6,1.99611151]
[1729812322277,1.66806699,2532.7,2532.6,1.99611151]
[1729812323254,1.66806699,2532.7,2532.6,1.16684734]
[1729812323979,1.66806699,2532.7,2532.6,1.99611151]
[1729812324177,1.66806699,2532.7,2532.6,1.16684734]
[1729812324178,5.61641699,2532.7,2532.6,1.16684734]
[1729812327481,5.61641699,2532.7,2532.5,0.8301]
[1729812327663,1.61577113,2532.6,2532.5,0.8301]
[1729812328266,1.66803897,2532.6,2532.5,0.8301]
[1729812334915,5.61654897,2532.6,2532.4,8.61086417]
[1729812335121,1.61577113,2532.5,2532.4,8.61086417]
[1729812335633,0.05235131,2532.5,2532.4,8.61086417]
[1729812337204,5.61678244,2532.5,2532.4,8.61086417]
[1729812337391,5.61678244,2532.5,2532.4,7.7816]
[1729812346636,7.40953168,2532.5,2532.4,7.7816]
[1729812351804,7.95953168,2532.5,2532.4,7.7816]
[1729812352010,10.95953168,2532.5,2532.4,7.7816]
[1729812365147,9.34376055,2532.5,2532.4,7.7816]
[1729812365337,5.61678244,2532.5,2532.4,7.7816]
[1729812373066,6.95528244,2532.5,2532.4,7.7816]
[1729812378534,5.33951131,2532.5,2532.4,7.7816]
[1729812378732,6.95528244,2532.5,2532.4,7.7816]
[1729812378929,8.04566168,2532.5,2532.4,7.7816]
[1729812380772,11.04566168,2532.5,2532.4,7.7816]
[1729812413383,10.26716168,2532.5,2532.4,7.7816]
[1729812430572,8.09139055,2532.5,2532.4,7.7816]
[1729812430731,8.61678244,2532.5,2532.4,7.7816]
[1729812430931,8.62678244,2532.5,2532.4,7.7816]
[1729812432477,7.00101131,2532.5,2532.4,8.5868]
[1729812432772,8.61678244,2532.5,2532.4,8.5868]
[1729812438741,7.00101131,2532.5,2532.4,8.5868]
[1729812438937,8.61678244,2532.5,2532.4,8.5868]
[1729812440745,5.61678244,2532.5,2532.4,8.5868]
[1729812441783,4.00101131,2532.5,2532.4,8.5868]
[1729812441985,5.61678244,2532.5,2532.4,8.5868]
[1729812458121,5.61678244,2532.5,2532.4,7.7816]
[1729812459289,6.57431168,2532.5,2532.4,7.7816]
[1729812464809,5.61678244,2532.5,2532.4,7.7816]
[1729812466451,4.00101131,2532.5,2532.4,7.7816]
[1729812466601,5.61678244,2532.5,2532.4,7.7816]
[1729812483176,6.42278244,2532.5,2532.4,7.7816]
[1729812483471,3.94944,2532.0,2531.9,0.82926417]
[1729812483643,3.9496,2531.9,2531.8,1.59846417]
[1729812483846,5.56537113,2531.9,2531.8,1.59846417]
[1729812484045,5.61457434,2531.9,2531.8,1.59846417]
[1729812484234,5.61457434,2531.9,2531.8,0.7692]
[1729812484944,3.94991,2531.7,2531.6,1.59846417]
[1729812485269,5.61482825,2531.7,2531.6,1.59846417]
[1729812486331,5.61482825,2531.7,2531.6,0.7692]
[1729812494458,3.99905712,2531.7,2531.6,0.7692]
[1729812494665,5.61482825,2531.7,2531.6,0.7692]
[1729812495886,1.66491825,2531.7,2531.3,0.7692]
[1729812496087,3.95027,2531.5,2531.3,1.05327473]
[1729812496462,0.04884461,2531.4,2531.3,1.05327473]
[1729812497291,0.04884461,2531.4,2531.3,0.36307661]
[1729812497457,0.04884461,2531.4,2531.3,1.13227661]
[1729812497659,0.04884461,2531.4,2531.3,6.69857771]
[1729812497867,0.04884461,2531.4,2531.3,6.61957586]
[1729812498092,3.94977,2531.8,2531.4,3.95036]
[1729812498296,3.94977,2531.8,2531.6,0.7692]
[1729812499192,0.04892876,2531.7,2531.6,0.7692]
[1729812499391,5.56554113,2531.8,2531.6,0.7692]
[1729812499596,0.04892876,2531.7,2531.6,0.7692]
[1729812499887,5.56554113,2531.8,2531.6,0.7692]
[1729812500090,0.04892876,2531.7,2531.6,1.28350035]
[1729812500492,5.56554113,2531.8,2531.6,1.28350035]
[1729812500706,0.04892876,2531.7,2531.6,1.28350035]
[1729812501006,5.56554113,2531.8,2531.6,1.28350035]
[1729812501202,0.04892876,2531.7,2531.6,1.28350035]
[1729812501704,3.94977,2531.8,2531.6,1.28350035]
[1729812501870,0.04892876,2531.7,2531.6,1.28350035]
[1729812502204,3.94977,2531.8,2531.6,1.28350035]
[1729812502513,0.04892876,2531.7,2531.6,1.28350035]
[1729812502864,3.94977,2531.8,2531.6,1.28350035]
[1729812503064,1.61577113,2531.9,2531.8,0.823]
[1729812503065,3.94962,2531.9,2531.8,0.823]
[1729812503263,5.56539113,2531.9,2531.8,0.823]
[1729812505417,3.94962,2531.9,2531.8,0.823]
[1729812505584,5.56539113,2531.9,2531.8,0.823]
[1729812510687,3.94962,2531.9,2531.8,0.823]